Cogmind - Beta 17 @@@ ROGUE MODE // 2026.07.16 @ 15:19:40 Player: (Blank) Result: Destroyed by G-34 Mercenary with Small Laser Performance ------------- Evolutions (1) 500 Regions Visited (2) 400 Robots Destroyed (15) 75 Value Destroyed (320) 320 Prototype IDs (0) 0 Alien Tech Used (0) 0 Bonus (0) 0 TOTAL SCORE: 1295 Bonus ------- None Cogmind --------- Core Integrity 0/400 Matter 56/300 Energy 153/160 System Corruption 0% Temperature Cool (54) Movement Core (100) Ox1 Location -9/Materials Parts ------- > --- POWER (1) -------- Light Nuclear Core > --- PROPULSION (3) --- (None) > --- UTILITY (3) ------ (None) > --- WEAPON (2) ------- (None) > --- INVENTORY (5) ---- Small Storage Unit Peak State ------------ > --- POWER ------------ Ion Engine > --- PROPULSION ------- Wheel Wheel > --- UTILITY ---------- Small Storage Unit Improved Terrain Scanner > --- WEAPON ----------- EM Pulse Gun > --- INVENTORY -------- Light Ion Engine Wheel Compact Wheel [Rating: 8] Favorites ----------- Power Ion Engine Engine Ion Engine Power Core Light Nuclear Core Propulsion Wheel Leg Aluminum Leg Wheel Wheel Flight Unit Flight Unit Utility Small Storage Unit Device Improved Terrain Scanner Storage Small Storage Unit Weapon EM Pulse Gun Energy Gun EM Pulse Gun Ballistic Gun Heavy Assault Rifle Launcher Rocket Launcher Build | -11 -10 -9 ------- Run | Yrd Mat Mat Slots Evolved 2 | . . 2 Power . | . . . Propulsion 1 | . . 1 Utility 1 | . . 1 Weapon . | . . . Parts Attached 21 | 9 . 12 Power 3 | 1 . 2 Engine 2 | 1 . 1 Core 1 | . . 1 Reactor . | . . . Propulsion 9 | 5 . 4 Treads . | . . . Leg 2 | 2 . . Wheel 5 | 3 . 2 Hover . | . . . Flight 2 | . . 2 Utility 4 | 2 . 2 Device 3 | 1 . 2 Storage 1 | 1 . . Processor . | . . . Hackware . | . . . Protection . | . . . Artifact . | . . . Weapon 5 | 1 . 4 Energy Gun 3 | 1 . 2 Energy Cannon . | . . . Ballistic Gun 1 | . . 1 Ballistic Cannon . | . . . Launcher 1 | . . 1 Special Weapon . | . . . Impact Weapon . | . . . Slashing Weapon . | . . . Piercing Weapon . | . . . Special Melee Weapon . | . . . Unidentified Prototypes . | . . . Parts Lost 14 | . 3 11 Power 2 | . 1 1 Propulsion 4 | . 1 3 Utility 3 | . . 3 Weapon 5 | . 1 4 Highest Loss Streak 4 | . 3 4 To Critical Strikes . | . . . Average Backups 1 | 1 3 1 Power . | . 1 . Propulsion . | . 2 . Utility . | . . 1 Weapon . | . . . Tool/Special . | . . . Unused Backups 2 | . . 2 Power . | . . . Propulsion 1 | . . 1 Utility 1 | . . 1 Weapon . | . . . Tool/Special . | . . . Average Slot Usage (%) 39 | . 77 28 Engine 6 | . 12 4 Wheel 9 | . 26 5 Flight 4 | . . 5 Device 5 | . 14 3 Storage 3 | . 14 . Energy Gun 5 | . 10 3 Ballistic Gun 1 | . . 1 Launcher 1 | . . 2 Peak Build Rating 8 | 8 8 8 Average Rating 4 | 4 7 4 On Entrance 4 | . 8 4 Avg Prop Armor Cover (%) . | . . . Naked Turns 3 | . . 3 Heaviest Build 13 | 13 13 8 Greatest Support 26 | 26 20 16 Greatest Overweight (x) 2 | . 1 2 Average Overweight (x) . | . . . Largest Inventory Capacity 8 | 8 8 8 Average Capacity 6 | 7 8 5 Most Carried 5 | 5 5 5 Average Carried 1 | 1 3 1 Final Capacity 8 | 8 8 5 Final Carried 5 | 3 5 1 Class Distribution -------------------- 100% | Mutant Dominant Class ---------------- Mutant | -10/Materials Mutant | -9/Materials Resources | -11 -10 -9 ----------- Run | Yrd Mat Mat Matter Collected 355 | 270 18 67 Remotely . | . . . Salvage Created 463 | 159 35 269 Parts 29 | 8 4 17 Haulers Intercepted 1 | . . 1 Recyclers Shooed 2 | 1 . 1 Parts Field Recycled . | . . . Retrieved Matter . | . . . Parts Self-Destructed . | . . . Prevented . | . . . Parts Restored . | . . . Kills | -11 -10 -9 ------- Run | Yrd Mat Mat Combat Hostiles Destroyed 7 | . 2 5 Guns 4 | . 2 2 AOE 3 | . . 3 Classes Destroyed 6 | 2 1 3 Tunneler 3 | 3 . . Hauler 1 | . . 1 Recycler 2 | 1 . 1 Watcher 2 | . . 2 Swarmer 2 | . 2 . Grunt 5 | . . 5 Best Kill Streak 5 | 2 2 5 Combat Bots Only 2 | . 2 2 Max Kills in Single Turn 2 | 1 1 2 Gunslinging . | . . . Exploded 1 | . . 1 Melee . | . . . Uniques/NPCs Destroyed . | . . . Combat | -11 -10 -9 -------- Run | Yrd Mat Mat Hostile Shots Fired 140 | . 46 94 Missed 42 | . 15 27 Hits 98 | . 31 67 Projectile 98 | . 31 67 Critical Strikes 1 | . . 1 Damage Taken 1180 | 36 260 884 Core 496 | 18 70 408 Absorbed by Shields 34 | . . 34 Core Remaining (%) 78 | 92 64 . Volleys Fired 82 | 20 10 52 Largest 1 | 1 1 1 Hottest 45 | 40 40 45 Shots Fired 82 | 20 10 52 Gun 65 | 20 10 35 Cannon . | . . . Launcher 17 | . . 17 Special . | . . . Kinetic 18 | . . 18 Thermal . | . . . Explosive 17 | . . 17 Electromagnetic 47 | 20 10 17 Robot Hit Streak 4 | 3 3 4 Robot Miss Streak 3 | 3 1 3 Penetration Max . | . . . Secondary Targets . | . . . Shots Hit Robots 26 | 10 3 13 Core Hits 24 | 4 2 18 Critical Kills . | . . . Critical Parts Destroyed . | . . . Critical Strikes . | . . . Melee Attacks . | . . . Impact . | . . . Slashing . | . . . Piercing . | . . . Sneak Attacks . | . . . Combat Hostiles . | . . . Follow-up Attacks . | . . . Damage Inflicted 977 | 194 35 748 Guns 352 | 133 32 187 Cannons . | . . . Explosions 614 | 61 . 553 Melee . | . . . Ramming 11 | . 3 8 Kinetic 27 | . . 27 Thermal 61 | 61 . . Explosive 553 | . . 553 Electromagnetic 325 | 133 32 160 Impact . | . . . Slashing . | . . . Piercing . | . . . Highest Corruption 1 | . 1 . Average Corruption 1 | . 1 . Corruption Purged . | . . . Corruption Blocked . | . . . Effects 1 | . 1 . Data Loss (minor) 1 | . 1 . Overload Shots . | . . . Overflow Damage 89 | 21 . 68 Projectiles . | . . . Explosions 89 | 21 . 68 Melee . | . . . Knockbacks . | . . . Impact . | . . . Kinetic . | . . . Secondary . | . . . Self-Inflicted Damage 106 | 36 1 69 Shots 3 | 1 . 2 Rammed 2 | . 1 1 Targets Rammed 2 | . 1 1 Kicked . | . . . Crushed . | . . . Highest Temperature 42 | 12 20 42 Average Temperature 15 | 12 20 13 Received Heat Transfer 386 | . . 386 Siege Activations . | . . . Martial Activations . | . . . Shielding Activations . | . . . Robots Disrupted . | . . . Combat Hostiles . | . . . Robots Corrupted . | . . . Combat Hostiles . | . . . Parts Fried . | . . . Impact Corruptions . | . . . Robots Melted . | . . . Combat Hostiles . | . . . Parts Melted . | . . . Heat Transferred 100 | 100 . . Parts Sabotaged . | . . . Parts Stolen . | . . . Parts Stripped . | . . . Power Chain Reactions 1 | 1 . . Alert | -11 -10 -9 ------- Run | Yrd Mat Mat Maximum Alert Level . | . . . Low Security (%) 100 | 100 100 100 Level 1 . | . . . Level 2 . | . . . Level 3 . | . . . Level 4 . | . . . Level 5 . | . . . High Security . | . . . Max Security . | . . . Peak Influence 195 | 10 45 195 Initial 1 | . . 1 Average 73 | 2 10 120 Influence Increases 422 | 20 55 347 Destroy 0b10 Robot/C 140 | . 40 100 Destroy 0b10 Robot/NC 40 | 20 . 20 Destroy Leader 26 | . . 26 Disable Machine 75 | . . 75 Destroy Structure 66 | . . 66 Lose Combat Pursuer 75 | . 15 60 Influence Decreases 267 | 20 50 197 Entered New Map 4 | . . 4 Time Decay 141 | 20 20 101 Lost Part 122 | . 30 92 Squads Dispatched 3 | . 1 2 Investigation . | . . . Extermination . | . . . Reinforcement 3 | . 1 2 Assault . | . . . Garrison . | . . . Intercept . | . . . Searches Triggered . | . . . Construction Impeded 1 | . . 1 Haulers Reinforced . | . . . Active Scanning Responses . | . . . Cargo Convoy Interrupts . | . . . Stealth | -11 -10 -9 --------- Run | Yrd Mat Mat Distress Signals 2 | . . 2 Communications Jammed . | . . . Distress Signals . | . . . Times Spotted 26 | . 8 18 Peak Tracking Total 6 | . 5 6 Tactical Retreats 3 | . 1 2 Traps | -11 -10 -9 ------- Run | Yrd Mat Mat Traps Triggered 1 | . 1 . Indirectly . | . . . Trap Hack Attempts . | . . . Triggered . | . . . Disarmed . | . . . Reprogrammed . | . . . Reused . | . . . Traps Extracted . | . . . Installed . | . . . Triggered . | . . . Machines | -11 -10 -9 ---------- Run | Yrd Mat Mat Machines Disabled 5 | . . 5 Max in Single Turn 2 | . . 2 Machines Repaired . | . . . Machines Dismantled . | . . . Machines Sabotaged . | . . . Overloaded Fab Kills . | . . . Hacking | -11 -10 -9 --------- Run | Yrd Mat Mat Machines Accessed 1 | . 1 . Terminals 1 | . 1 . Fabricators . | . . . Repair Stations . | . . . Recycling Units . | . . . Scanalyzers . | . . . Garrison Access . | . . . Total Hacks 1 | . 1 . Successful 1 | . 1 . Failed . | . . . Catastrophic . | . . . Database Lockouts . | . . . Manual . | . . . Terminals 1 | . 1 . Fabricators . | . . . Repair Stations . | . . . Recycling Units . | . . . Scanalyzers . | . . . Garrison Access . | . . . Terminal Hacks 1 | . 1 . Alert Level 1 | . 1 . Fabricator Hacks . | . . . Repair Station Hacks . | . . . Recycling Unit Hacks . | . . . Scanalyzer . | . . . Garrison Access Hacks . | . . . Unauthorized Hacks . | . . . Terminals . | . . . Fabricators . | . . . Repair Stations . | . . . Recycling Units . | . . . Scanalyzers . | . . . Garrison Access . | . . . Data Cores Recovered . | . . . Used . | . . . Hacking Detections . | . . . Full Trace Events . | . . . Feedback Events . | . . . Feedback Blocked . | . . . Robot Schematics Acquired . | . . . Robots Built . | . . . Authchips . | . . . Time . | . . . Total Robot Build Rating . | . . . Part Schematics Acquired . | . . . Parts Built . | . . . Authchips . | . . . Time . | . . . Total Part Build Rating . | . . . Part Studies Acquired . | . . . Parts Repaired . | . . . Time . | . . . Parts Recycled . | . . . Recycled Matter . | . . . Retrieved Matter . | . . . Retrieved Components . | . . . Parts Scanalyzed . | . . . Part Schematics Acquired . | . . . Parts Damaged . | . . . Bothacking | -11 -10 -9 ------------ Run | Yrd Mat Mat Used RIF Installer . | . . . Robots Hacked . | . . . Non-combat . | . . . Combat . | . . . Robot Hacks Applied . | . . . Relay Couplers Released . | . . . Fabnet Peak Effective % . | . . . Robots Rewired . | . . . Allies Hacked . | . . . Hacks Repelled . | . . . Allies | -11 -10 -9 -------- Run | Yrd Mat Mat Total Allies . | . . . Largest Group . | . . . Highest-Rated Group . | . . . Highest-Rated Ally . | . . . Total Orders . | . . . Ally Attacks . | . . . Total Damage . | . . . Kills . | . . . Allies Corrupted . | . . . Allies Melted . | . . . Intel | -11 -10 -9 ------- Run | Yrd Mat Mat Active Infowar (turns) 109 | 5 73 31 Terrain 109 | 5 73 31 Robot Analysis Total . | . . . Derelict Logs Recovered . | . . . Drone Launches . | . . . Drone Recoveries . | . . . Exploration | -11 -10 -9 ------------- Run | Yrd Mat Mat Turns Passed 457 | 113 73 271 Spaces Moved 358 | 53 60 245 Core 33 | 11 6 16 Treads . | . . . Legs 14 | 14 . . Wheels 152 | 28 54 70 Hover . | . . . Flight 159 | . . 159 Fastest Speed 37 | 50 80 37 Average Speed 66 | 88 83 57 Slowest Speed 150 | 120 100 150 Overloaded Moves . | . . . Propulsion Burnouts . | . . . Robots Hopped . | . . . Potential Cave-ins . | . . . Cave-ins Triggered . | . . . Exploration Rate (%) 17 | 3 21 28 Regions Visited 2 Branch Regions . Pre-discovered Areas . | . . . Known Exits Taken . | . . . Unknown Exits Taken 2 | 1 1 . Scrap Searched . | . . . Spaces Dug . | . . . Terrain Destroyed 80 | 6 . 74 Melee . | . . . Projectile . | . . . AOE 80 | 6 . 74 Terrain Rammed . | . . . Walls Destroyed . | . . . Machines Disabled . | . . . Actions | -11 -10 -9 --------- Run | Yrd Mat Mat Total 497 | 99 73 325 Wait 3 | 3 . . Move 356 | 52 59 245 Hop . | . . . Pick Up 24 | 12 2 10 Fast Attach . | . . . Attach 19 | 7 . 12 Detach . | . . . Swap 3 | 2 . 1 Drop 8 | 3 1 4 Fire 82 | 20 10 52 Melee . | . . . Ram 2 | . 1 1 Kick . | . . . Crush . | . . . Escape Stasis . | . . . Rewire . | . . . Trap . | . . . Miscellaneous . | . . . Route ------- -11/Scrapyard -10/Materials -9/Materials History --------- Turn | Location | Event 8 | -11/Scrapyard | Discovered new exit (range 15) 114 | -11/Scrapyard | Entered Materials 167 | -10/Materials | Discovered new exit (range 16) 187 | -10/Materials | Entered another Materials area 187 | -9/Materials | Evolved 2 slots: Propulsion x1, Utility x1 213 | -9/Materials | Lost 3 parts (1p1n1w) 306 | -9/Materials | Build established: Mutant 372 | -9/Materials | Lost 4 parts (1p1n2w) 404 | -9/Materials | Core integrity fell below 50% 424 | -9/Materials | Core integrity fell below 20% 448 | -9/Materials | Lost 4 parts (1n2u1w) 458 | -9/Materials | Destroyed by G-34 Mercenary with Small Laser Last Messages --------------- U-05 Engineer lays Concrete. Critical hit (Burn: +26). U-05 Engineer lays Concrete. The unstable cave ceiling collapses. U-05 Engineer lays Concrete. Shield Generator destroyed. U-05 Engineer lays Concrete. Shield Generator destroyed. U-05 Engineer lays Concrete. U-05 Engineer builds a Door. Com. Wheel destroyed. Hvy. Assault Rifle destroyed. Acquired EM Shotgun. G-47 Trooper destroyed. Acquired 46 matter. Acquired Lgt. Nuclear Core. R-06 Scavenger collects Aluminum Leg. G-34 Mercenary misfires. G-34 Mercenary destroyed. EM Shotgun destroyed. Map ----- +----------------------------------------------------+ | ?????????????????????????????????????????????????? | | ?????????????????????????????????????????????????? | | ?????????????????????????????????????????????????? | | ?????????????????????????????????????????????????? | | ?????????????????????????????????????????????????? | | ?????????????????????????????????????????????????? | | ?????????????????????????????????????????????????? | | ?????????????????????????????????????????????????? | | ?????????????????????????????????????????????????? | | ?????????????????????????????????????????????????? | | ?????????????????????????????????????????????????? | | ?????????????????? ? ????????????????????????????? | | ??? ??????????## ? ##??????????????????????????? | | ??# ??????????# #??????????????????????????? | | ??# ??????????# ??????????????????????????? | | ??# ??????????? T ???????????????????????????? | | ??# ??????????? ???????????????????????????? | | ??# ??????????? ???????????????????????????? | | ??# ???????????# #???????????????????????????? | | ??# #??????????# #???????????????????????????? | | ??# ############ #???????????????????????????? | | ??# # ## ##??????????????????????????? | | ??# # """ ## #######????????????????????? | | ??# # """"" ## #????????????????????? | | ??# # """"" # # " #????????????????????? | | ??# # """"" ## # "@ #????????????????????? | | ??# + """ # " % #????????????????????? | | ??# # # "gg=#????????????????????? | | ??# # # + !=#????????????????????? | | ??# ############ ##############??????????????? | | ??# ??????????????? | | ??+ ???????????????? | | ??# "" ?????????????????? | | ??# ############ """ ##?????????????????? | | ??# #????????# """% #?????????????????? | | ??# #??????### "" #?????????????????? | | ?## ##????## # ##?????????????????? | | ## ###### #??????????????????? | | ## ##??????????????????? | | = " ## % #???????????????????? | | + = " #???????????????????? | | ## ## "" #???????????????????? | | ####+#### !!! ^ #???????????????????? | | # !!! #???????????????????? | | # !! """ #???????????????????? | | # """ #???????????????????? | | """ """ # # """ #???????????????????? | | """ """ ######## #^ " #???????????????????? | | """ """ ## # #???????????????????? | | ## """ ??????????????? | +----------------------------------------------------+ Best States ------------- Heat Dissipation 28 Energy Generation 14 Energy Capacity 250 Matter Stores 300 Matter Capacity 300 Sight Range 16 Terrain Scan Range 16 Terrain Scan Density 10 Evasion (%) 62 Item Schematics ----------------- None Robot Schematics ------------------ None Fabricated ------------ Nothing Repaired ---------- Nothing Studied --------- None Alien Tech Used ----------------- None Achievements -------------- None Challenges ------------ None Game ------ Seed PietyThiefPod Manual? 0 Play Time 00:12:15 Cumulative 5.2 hours Start 2026.07.16 @ 15:09:23 End 2026.07.16 @ 15:19:40 Sessions 1 Manual Loads 0 Difficulty Rogue Special Mode None Game No. 9 Rogue 9 Adventurer 0 Explorer 0 Win Type - Total 0 Types 0/0/0/0/0/0/0/0/0/0 Lore% 3 Gallery% 7 Achievement% 11 Wizard Run 0 Options --------- Layout 0 ASCII 0 Keyboard 0 Movement Mouse Keybinds 0 Fullscreen 2 Font 18/SmallcapsGlow Map View 76x50 Zoom Use 0% Tactical HUD 0 Map Filters NONE Filters NONE Steam 1 RUN: 41786d58-528d-4d68-ac19-47074df925af